bitfinex/quotes_ETHUSD_20251120
["timestamp","ask_amount","ask_price","bid_price","bid_amount"]
[1763663580255,0.455,2826.6,2826.0,0.001]
[1763663580552,0.555,2826.6,2826.0,0.001]
[1763663580735,0.405504,2826.5,2825.9,0.001]
[1763663580936,1.210869,2826.6,2825.9,0.001]
[1763663581162,0.1,2826.0,2825.9,0.001]
[1763663581555,0.3746853,2826.7,2825.9,0.001]
[1763663581855,0.6447,2827.7,2826.0,0.405504]
[1763663582035,0.1,2827.2,2826.6,0.90699264]
[1763663582237,0.1,2826.9,2826.3,0.90699264]
[1763663582437,0.1,2826.9,2826.4,0.75267084]
[1763663582640,0.18491043,2827.8,2826.9,0.405504]
[1763663582843,0.18491043,2827.8,2826.4,1.15817484]
[1763663582844,0.1,2827.5,2826.4,0.75267084]
[1763663583042,0.1,2826.7,2825.9,0.001]
[1763663583351,0.1,2826.4,2825.9,0.001]
[1763663583673,0.1,2826.8,2826.0,0.405504]
[1763663583822,1.43982211,2828.3,2826.3,1.31249664]
[1763663583823,0.1897,2827.5,2826.3,1.31249664]
[1763663584021,0.1897,2827.5,2825.9,0.66307157]
[1763663584340,0.1,2826.7,2825.9,0.001]
[1763663584649,0.455,2827.4,2826.2,0.90699264]
[1763663585039,0.1897,2827.5,2826.3,0.405504]
[1763663585239,0.1,2827.5,2826.7,1.31249664]
[1763663585450,0.1,2827.5,2826.7,0.90699264]
[1763663585630,0.1897,2826.8,2825.9,0.001]
[1763663585813,0.1,2826.6,2825.9,0.001]
[1763663586157,0.1897,2826.8,2825.9,0.001]
[1763663586158,0.1,2826.2,2825.9,0.001]
[1763663586340,0.1,2826.0,2825.9,0.001]
[1763663586516,0.455,2826.7,2825.9,0.001]
[1763663586716,0.1,2826.0,2825.9,0.001]
[1763663586954,1.3484795,2826.3,2822.8,1.73269378]
[1763663587260,0.90699264,2825.7,2822.8,1.73269378]
[1763663587427,0.2897,2824.6,2822.8,7.94690551]
[1763663587755,0.1897,2824.6,2822.8,6.21421173]
[1763663588060,0.1897,2822.9,2821.4,0.4776]
[1763663588227,0.1,2823.1,2822.1,6.21421173]
[1763663588426,0.1,2823.4,2822.7,0.90699264]
[1763663588627,0.1,2823.4,2822.6,6.21421173]
[1763663589214,0.1,2823.4,2822.5,6.67571173]
[1763663589415,0.1,2823.5,2822.5,6.67571173]
[1763663589651,0.4911,2824.0,2822.6,0.90699264]
[1763663589652,0.1,2823.3,2822.6,0.90699264]
[1763663590156,0.1,2823.1,2822.5,6.21421173]
[1763663590452,0.1,2822.9,2821.5,0.18468332]
[1763663590656,0.90699264,2824.4,2821.7,6.21421173]
[1763663590657,0.405504,2824.1,2821.7,6.21421173]
[1763663590834,0.1,2823.1,2822.2,6.21421173]
[1763663591032,0.4911,2824.0,2822.3,1.36849264]
[1763663591362,0.4911,2824.0,2822.2,0.4615]
[1763663591719,0.1,2823.1,2822.0,6.21421173]
[1763663591917,0.1,2822.4,2821.8,0.62142117]
[1763663592231,0.1,2822.4,2821.7,0.4615]
[1763663592415,0.405504,2823.9,2822.1,0.90699264]
[1763663592416,0.4911,2823.4,2822.1,0.90699264]
[1763663592615,0.4911,2823.4,2821.5,0.18468332]
[1763663592616,0.1,2822.6,2821.8,6.21421173]
[1763663592949,0.4911,2824.3,2822.5,0.405504]
[1763663593154,0.4911,2824.3,2822.5,1.15817484]
[1763663593356,0.1,2822.9,2822.5,0.75267084]
[1763663593658,0.4911,2824.3,2822.7,1.31249664]
[1763663593828,0.1,2823.6,2822.7,1.31249664]
[1763663594030,0.1,2823.8,2823.2,1.31249664]
[1763663594358,0.1,2823.5,2822.9,0.405504]
[1763663594719,6.21421173,2823.3,2819.5,0.09999999]
[1763663594966,0.1,2821.8,2820.6,6.21421173]
[1763663595164,0.1,2821.8,2820.0,0.1832]
[1763663595165,0.50619883,2822.6,2821.4,0.1432]
[1763663595670,0.1,2822.1,2821.4,0.1432]
[1763663596014,0.1,2821.8,2821.6,0.03544088]
[1763663596465,0.1,2821.8,2821.3,0.90699264]
[1763663596671,0.4911,2822.6,2821.8,0.90699264]
[1763663596672,0.1,2822.1,2821.8,0.90699264]
[1763663596971,0.1864,2823.5,2822.0,0.405504]
[1763663597206,0.1,2823.2,2822.6,0.90699264]
[1763663597369,0.6808,2824.6,2823.2,1.31249664]
[1763663597713,0.1,2823.3,2823.2,0.90699264]
[1763663597878,0.4911,2824.5,2823.2,0.71212044]
[1763663598079,0.1,2823.4,2823.1,0.90699264]
[1763663598294,0.4911,2824.5,2823.1,0.90699264]
[1763663598498,0.4911,2824.5,2823.3,0.405504]
[1763663598707,0.1,2824.0,2823.6,0.90699264]
[1763663599003,0.1,2824.8,2823.7,1.026804]
[1763663599206,0.1,2824.6,2823.7,0.1598]
[1763663599407,0.1,2824.4,2823.9,0.90699264]
[1763663599716,0.1,2824.1,2823.4,1.36849264]
[1763663600027,0.4911,2824.0,2823.1,0.90699264]
[1763663600234,0.4911,2824.0,2822.5,0.1432]
[1763663600391,0.1,2823.3,2822.4,6.21421173]
[1763663600591,0.4911,2824.0,2822.2,6.21421173]
[1763663600803,0.1,2823.0,2822.3,1.52841381]
[1763663601033,0.1,2822.7,2822.2,6.21421173]
[1763663601204,0.1864,2823.2,2821.7,6.21421173]
[1763663601405,0.1,2823.3,2822.2,6.21421173]
[1763663601607,0.6775,2823.8,2822.8,0.90699264]
[1763663601917,0.6775,2823.8,2822.0,0.405504]
[1763663601918,0.1,2823.0,2822.6,0.90699264]
[1763663602229,0.1,2823.4,2822.6,0.90699264]
[1763663602436,0.1,2823.3,2822.7,0.03542707]
[1763663602747,0.1864,2823.8,2823.0,6.21421173]
[1763663602748,0.1,2823.6,2823.0,6.21421173]
[1763663603027,0.1,2823.1,2823.0,6.21421173]
[1763663603232,0.1,2823.6,2823.0,6.21421173]
[1763663603401,0.1,2823.6,2823.1,0.90699264]
[1763663603601,0.4911,2824.7,2823.5,6.21421173]
[1763663603819,0.1,2824.1,2823.5,6.21421173]
[1763663603999,0.1,2824.1,2823.6,0.90699264]
[1763663604201,0.4911,2824.1,2823.0,6.21421173]
[1763663604400,0.1,2823.6,2823.0,0.90699264]
[1763663604637,0.1,2823.4,2823.0,0.90699264]
[1763663605228,0.1,2823.0,2822.9,6.21421173]
[1763663605530,0.1,2823.1,2822.9,6.21421173]
[1763663605730,0.6775,2823.9,2822.9,6.21421173]
[1763663605930,0.1,2823.3,2822.9,6.21421173]
[1763663606228,0.4911,2823.8,2822.4,6.21421173]
[1763663606429,0.1,2822.7,2822.5,0.90699264]
[1763663606725,0.1,2823.0,2822.5,0.90699264]
[1763663607429,0.1,2822.9,2822.5,0.90699264]
[1763663607641,0.1,2823.1,2822.5,0.90699264]
[1763663607800,0.1,2822.9,2822.5,0.90699264]
[1763663608505,0.1,2822.6,2822.5,0.90699264]
[1763663608701,0.4911,2823.3,2821.9,6.21421173]
[1763663609011,0.4911,2823.3,2822.0,0.90699264]
[1763663609409,0.1,2822.8,2822.0,0.90699264]
[1763663609706,0.4911,2823.3,2822.0,0.90699264]
[1763663609936,0.405504,2823.2,2821.3,0.18458676]
[1763663610122,0.1,2822.2,2821.5,6.21421173]
[1763663610330,0.1,2822.5,2821.6,0.90699264]
[1763663610631,0.1,2822.5,2822.0,6.21421173]
[1763663610836,0.1,2822.3,2822.0,6.21421173]
[1763663611017,0.4901,2823.2,2822.1,0.90699264]
[1763663611342,0.1,2822.9,2822.1,0.90699264]
[1763663611543,0.1,2822.9,2822.5,6.21421173]
[1763663611758,0.1,2823.2,2822.5,6.21421173]
[1763663612045,0.1,2822.8,2822.4,0.90699264]
[1763663612245,0.4901,2823.6,2822.4,0.90699264]
[1763663612409,0.1,2823.6,2823.0,6.21421173]
[1763663612610,0.1864,2823.9,2822.6,0.90699264]
[1763663612815,0.1,2823.2,2822.6,0.90699264]
[1763663613025,0.1,2823.2,2822.6,1.61911308]
[1763663613225,0.1,2823.5,2822.6,1.61911308]
[1763663613435,0.4901,2823.8,2822.6,0.90699264]
[1763663614046,0.1,2823.3,2822.6,0.90699264]
[1763663614606,0.1,2823.8,2823.1,0.90699264]
[1763663615077,0.1,2824.2,2823.6,0.90699264]
[1763663615384,1.6194755,2824.8,2823.1,0.90699264]
[1763663615385,1.24996729,2824.1,2823.1,0.90699264]
[1763663615672,1.24996729,2824.1,2822.6,0.124]
[1763663615673,0.1,2824.1,2823.5,6.21421173]
[1763663615876,0.9429755,2824.5,2823.5,6.21421173]
[1763663615877,0.1,2824.5,2823.6,0.90699264]
[1763663616371,0.75992836,2824.4,2823.5,6.21421173]
[1763663616669,0.1,2824.1,2823.6,0.90699264]
[1763663616872,0.75992836,2824.3,2823.5,6.21421173]
[1763663616873,0.75992836,2824.0,2823.5,6.21421173]
[1763663617037,0.1,2823.7,2823.5,6.21421173]
[1763663617238,0.75992836,2824.1,2823.5,6.21421173]
[1763663617470,0.85992836,2824.0,2823.5,6.21421173]
[1763663617973,0.1,2823.7,2823.5,6.21421173]
[1763663618134,0.1,2823.7,2823.1,0.90699264]
[1763663618339,0.76189902,2823.8,2823.1,0.90699264]
[1763663618555,0.76189902,2823.9,2823.5,6.21421173]
[1763663618800,0.55569935,2823.8,2823.4,0.90699264]
[1763663619186,0.1,2823.7,2823.4,0.90699264]
[1763663619389,0.55569935,2823.8,2823.4,0.90699264]
[1763663619587,0.002,2824.2,2823.5,0.405504]
[1763663619905,0.002,2824.2,2824.1,7.12120437]
[1763663620612,0.002,2824.8,2824.2,0.90699264]
[1763663621716,0.002,2824.8,2824.3,0.90699264]
[1763663622625,0.472,2825.8,2824.9,0.405504]
[1763663622626,0.7616418,2825.8,2824.9,0.405504]
[1763663622914,0.002,2826.6,2825.8,0.90699264]
[1763663623084,0.002,2826.6,2826.2,6.21421173]
[1763663623085,0.1,2826.4,2826.2,6.21421173]
[1763663623287,0.002,2826.6,2826.3,0.90699264]
[1763663623704,0.002,2826.9,2826.3,0.90699264]
[1763663623874,0.002,2826.9,2826.8,7.12120437]
[1763663624275,0.102,2826.9,2826.8,7.12120437]
[1763663624529,0.574,2826.9,2824.3,0.70360654]
[1763663624676,0.574,2826.9,2824.9,6.21421173]
[1763663624677,0.97286549,2826.9,2824.9,6.21421173]
[1763663624875,0.97286549,2826.9,2825.0,0.90699264]
[1763663624876,0.1,2825.5,2825.0,0.90699264]
[1763663625278,0.1,2825.8,2825.0,0.90699264]
[1763663625473,0.1,2825.5,2825.0,0.90699264]
[1763663626348,0.1,2825.8,2825.0,0.90699264]
[1763663626510,0.1967,2826.3,2825.5,0.90699264]
[1763663626511,0.1,2826.0,2825.5,0.90699264]
[1763663626846,0.1,2825.9,2825.5,0.90699264]
[1763663627349,0.1967,2826.7,2825.5,0.90699264]
[1763663627841,0.1,2826.5,2825.5,0.90699264]
[1763663628014,0.472,2826.4,2825.5,0.90699264]
[1763663628340,0.1,2826.6,2826.0,0.90699264]
[1763663628543,0.1,2826.3,2825.5,0.90699264]
[1763663628839,0.1,2826.3,2826.0,0.90699264]
[1763663629347,0.1,2826.0,2825.5,0.90699264]
[1763663630007,0.472,2826.3,2825.5,0.90699264]
[1763663630207,0.1,2825.9,2825.5,0.90699264]
[1763663630410,0.472,2826.3,2825.5,0.90699264]
[1763663630609,0.1,2825.8,2824.9,6.21421173]
[1763663630839,0.472,2826.2,2824.4,6.21421173]
[1763663631009,0.1,2825.7,2825.0,0.90699264]
[1763663631341,0.1,2825.9,2825.0,0.90699264]
[1763663631548,0.1,2826.0,2825.5,0.90699264]
[1763663631953,0.1,2826.4,2825.5,0.90699264]
[1763663632614,0.1,2826.2,2825.5,0.90699264]
[1763663632825,0.1,2825.9,2825.5,0.90699264]
[1763663633225,0.1,2826.3,2825.5,0.90699264]
[1763663633545,0.1,2826.3,2824.8,0.405504]
[1763663633546,0.1,2826.3,2825.9,6.21421173]
[1763663633720,0.1,2826.4,2826.0,0.90699264]
[1763663633962,0.1,2826.5,2826.0,0.90699264]
[1763663634364,0.1,2826.7,2826.0,0.90699264]
[1763663634564,0.002,2826.9,2826.5,0.90699264]
[1763663634753,0.2987,2826.9,2826.2,7.53870724]
[1763663634953,0.102,2826.9,2826.3,0.90699264]
[1763663635486,0.1,2826.4,2826.3,0.90699264]
[1763663635691,0.1,2826.5,2826.3,0.90699264]
[1763663636193,0.1,2826.3,2825.8,0.90699264]
[1763663636701,0.1,2826.0,2825.8,0.90699264]
[1763663636872,0.102,2826.6,2825.8,0.90699264]
[1763663637190,0.1,2826.3,2825.8,0.90699264]
[1763663637662,0.1,2826.3,2825.7,7.53870724]
[1763663637663,0.555209,2826.2,2825.7,7.53870724]
[1763663637994,0.1,2826.0,2825.7,7.53870724]
[1763663640151,0.1967,2825.9,2825.5,0.90799264]
[1763663640351,0.1,2826.0,2825.5,7.53970724]
[1763663640874,0.1,2826.4,2825.6,0.90699264]
[1763663641099,0.55524469,2826.3,2825.6,0.90699264]
[1763663641395,0.1,2826.0,2825.5,0.001]
[1763663641893,0.1,2825.6,2825.5,0.001]
[1763663642397,0.572,2825.6,2825.5,0.001]
[1763663642907,0.1,2825.0,2824.9,0.001]
[1763663643066,0.572,2825.0,2824.9,0.001]
[1763663643255,0.472,2825.0,2824.9,0.001]
[1763663643593,0.1,2825.4,2824.9,0.001]
[1763663643777,0.472,2825.6,2824.9,0.001]
[1763663643979,0.1,2825.4,2824.9,0.001]
[1763663644201,0.1967,2825.9,2824.9,0.001]
[1763663644202,0.1,2825.2,2824.9,0.001]
[1763663644358,0.1,2825.0,2824.9,0.001]
[1763663644894,0.572,2825.0,2824.9,0.001]
[1763663645102,0.572,2825.0,2823.9,7.53870724]
[1763663645103,0.1,2824.5,2823.9,7.53870724]
[1763663645395,0.1,2825.2,2824.4,7.53870724]
[1763663645552,0.1,2825.2,2824.9,7.53870724]
[1763663645755,0.1,2825.6,2825.0,0.90699264]
[1763663645997,0.6687,2825.9,2825.0,0.90699264]
[1763663646169,0.1,2825.5,2825.0,0.90699264]
[1763663646498,0.1,2825.8,2825.0,1.75156263]
[1763663646682,0.1,2825.3,2823.2,2.48030819]
[1763663646886,0.405504,2825.6,2823.3,7.53870724]
[1763663647058,0.405504,2825.6,2822.8,0.124]
[1763663647059,0.877504,2825.6,2823.8,7.53870724]
[1763663647371,0.1,2824.4,2823.3,7.53870724]
[1763663647570,3.01416146,2825.4,2823.3,7.53870724]
[1763663647883,0.1,2823.8,2823.4,0.90699264]
[1763663648196,0.1,2824.4,2823.4,0.90699264]
[1763663648392,0.1,2824.4,2822.8,0.124]
[1763663648393,0.1987,2824.7,2823.9,7.53870724]
[1763663648692,0.1,2824.6,2823.9,7.53870724]
[1763663649198,0.1,2824.6,2824.0,0.90699264]
[1763663649406,0.2987,2825.1,2824.4,7.53870724]
[1763663649561,0.1987,2825.1,2824.4,7.53870724]
[1763663649756,0.1,2824.8,2824.4,7.53870724]
[1763663649962,0.1,2824.8,2824.0,0.90699264]
[1763663650501,0.1,2824.0,2823.4,7.53870724]
[1763663651304,0.4555,2825.0,2823.5,0.03541703]
[1763663651474,0.1,2824.5,2823.9,7.53870724]
[1763663651677,0.405504,2824.9,2823.4,7.53870724]
[1763663651887,0.1,2823.8,2823.4,7.53870724]
[1763663652703,0.1,2824.0,2823.5,0.90699264]
[1763663652905,0.1,2824.3,2823.9,0.001]
[1763663653111,0.1,2824.0,2823.9,0.001]
[1763663653397,0.1,2824.3,2823.9,0.001]
[1763663653613,0.4555,2824.5,2823.9,0.001]
[1763663653760,0.1,2824.2,2823.9,0.001]
[1763663654108,0.1,2824.4,2823.9,0.001]
[1763663654403,0.4575,2824.9,2824.1,0.405504]
[1763663654404,0.002,2824.9,2824.1,0.405504]
[1763663654610,0.002,2824.9,2824.8,8.44569988]
[1763663654960,0.002,2824.9,2824.8,9.69577387]
[1763663655160,0.002,2824.9,2824.8,8.44569988]
[1763663656001,0.002,2824.9,2824.8,0.90699264]
[1763663656679,0.2007,2824.9,2823.9,0.001]
[1763663656877,0.6562,2824.9,2823.9,0.001]
[1763663657077,0.6562,2824.9,2823.9,0.90799264]
[1763663657280,0.1,2824.8,2823.9,1.75266263]
[1763663657464,0.1,2824.8,2824.3,7.53870724]
[1763663657669,0.002,2824.9,2824.4,0.90699264]
[1763663658601,0.002,2824.9,2824.8,8.44569988]
[1763663660394,0.002,2824.9,2824.8,0.90699264]
[1763663661384,0.002,2825.2,2824.8,2.15706663]
[1763663661721,0.102,2826.6,2825.2,1.31249664]
[1763663661927,0.002,2826.6,2826.3,7.53870724]
[1763663662108,0.002,2826.6,2825.4,0.405504]
[1763663662283,0.002,2826.6,2826.0,0.90699264]
[1763663662483,0.002,2826.6,2826.5,0.90699264]
[1763663664005,0.1,2826.4,2825.3,0.1823]
[1763663664210,0.4575,2826.6,2825.1,7.53870724]
[1763663664211,0.1,2825.8,2825.1,7.53870724]
[1763663664390,0.1,2825.7,2825.1,7.53870724]
[1763663664585,0.1,2826.1,2825.1,8.76507796]
[1763663664818,0.1,2826.2,2825.2,0.878004]
[1763663665020,0.1,2826.0,2825.1,7.53870724]
[1763663665251,0.4555,2826.4,2824.4,0.124]
[1763663665406,0.49886549,2825.9,2824.0,0.1823]
[1763663665600,0.1,2824.7,2824.0,0.95450072]
[1763663666013,0.148204,2824.9,2824.3,7.53870724]
[1763663666209,0.148204,2824.9,2824.4,0.90699264]
[1763663666638,0.148204,2824.9,2824.3,8.01120724]
[1763663666639,0.1,2824.8,2824.0,0.77220072]
[1763663666939,0.603704,2824.9,2824.0,0.77220072]
[1763663666940,0.1,2824.7,2824.0,0.77220072]
[1763663667137,0.148204,2824.9,2824.4,0.90699264]
[1763663667349,0.148204,2824.9,2824.8,8.44569988]
[1763663667636,0.1,2826.1,2825.4,0.90699264]
[1763663668055,0.002,2826.6,2825.0,0.1823]
[1763663668217,0.002,2826.6,2824.9,0.90699264]
[1763663668218,0.1,2825.9,2824.9,0.90699264]
[1763663668560,0.4555,2826.2,2824.5,0.5965]
[1763663668731,0.1,2825.4,2824.6,0.23480626]
[1763663669229,0.1,2825.4,2824.4,0.90699264]
[1763663669425,0.1,2825.2,2824.4,0.90699264]
[1763663670017,0.4555,2825.8,2824.5,0.51970449]
[1763663670219,0.1,2826.0,2825.4,0.90699264]
[1763663670420,0.65534241,2826.3,2825.4,1.75156263]
[1763663670614,0.65534241,2826.3,2825.4,2.23586263]
[1763663671043,0.1,2826.3,2825.4,2.23586263]
[1763663671214,0.55524247,2826.2,2825.4,2.23586263]
[1763663671419,0.55524247,2826.2,2825.5,0.97745699]
[1763663671965,0.4612,2826.1,2824.9,1.57679264]
[1763663672261,0.1,2825.7,2824.9,1.09249264]
[1763663673929,0.4612,2826.1,2824.9,1.09249264]
[1763663674133,0.1,2825.6,2824.9,1.09249264]
[1763663674344,0.1,2825.6,2825.0,0.405504]
[1763663674547,0.1,2826.0,2825.0,0.405504]
[1763663674734,0.002,2826.1,2825.4,0.90699264]
[1763663675131,0.002,2826.1,2825.5,0.405504]
[1763663675524,0.002,2826.1,2826.0,0.1855]
[1763663675728,0.002,2826.1,2825.9,0.90699264]
[1763663677264,0.002,2826.6,2826.0,0.9251897]
[1763663677478,0.002,2826.6,2826.5,8.44569988]
[1763663677656,0.002,2827.2,2826.6,1.31249664]
[1763663677859,0.002,2827.2,2827.1,8.95530388]
[1763663678180,0.002,2827.2,2827.1,0.90699264]
[1763663680029,0.4864,2827.2,2826.1,7.53870724]
[1763663680230,0.1,2826.7,2825.6,8.18350724]
[1763663680464,0.4864,2827.2,2825.6,7.53870724]
[1763663680770,0.1978,2826.6,2825.3,7.53870724]
[1763663680973,0.1,2826.1,2825.4,0.90699264]
[1763663681174,0.4844,2827.1,2825.4,0.90699264]
[1763663681175,0.1978,2826.9,2825.9,0.90699264]
[1763663681473,0.1,2826.7,2826.0,0.84456999]
[1763663681770,0.1,2826.7,2825.9,0.90699264]
[1763663682530,0.002,2827.2,2826.3,7.53870724]
[1763663682786,0.1,2827.1,2826.4,0.90699264]
[1763663683170,0.002,2827.2,2826.8,7.53870724]
[1763663683481,0.002,2827.2,2826.9,0.90699264]
[1763663683688,0.002,2827.2,2827.1,0.1855]
[1763663684046,0.002,2827.2,2826.9,0.90699264]
[1763663684581,0.5551562,2828.9,2827.4,0.002]
[1763663684750,0.37019591,2828.9,2828.8,8.44569988]
[1763663684949,0.6822,2830.0,2828.9,0.90699264]
[1763663685169,0.1978,2830.8,2829.9,0.90699264]
[1763663685381,0.002,2831.3,2830.5,0.405504]
[1763663685583,0.002,2831.3,2830.9,0.90699264]
[1763663685794,0.002,2831.3,2831.0,0.405504]
[1763663686097,0.002,2831.3,2831.0,0.864804]
[1763663686555,0.002,2831.3,2830.9,0.90699264]
[1763663687596,0.002,2831.3,2831.0,0.405504]
[1763663688000,0.002,2831.3,2830.9,0.90699264]
[1763663688361,0.6842,2831.3,2830.9,0.90699264]
[1763663688600,0.6842,2831.3,2830.0,0.7735]
[1763663688601,0.4844,2831.2,2830.0,0.1902]
[1763663688810,0.4844,2831.2,2827.9,3.79050227]
[1763663688811,0.1,2830.8,2829.9,7.53870724]
[1763663688966,0.1998,2831.3,2830.4,7.53870724]
[1763663689273,0.1,2831.1,2830.5,0.90699264]
[1763663689474,0.6842,2831.3,2829.5,0.124]
[1763663689475,0.6842,2831.3,2829.9,7.53870724]
[1763663689660,0.1,2831.1,2830.0,0.90699264]
[1763663689864,0.1,2831.1,2830.1,0.84456999]
[1763663690344,0.002,2831.3,2831.0,0.90699264]
[1763663690510,0.1,2831.2,2830.5,0.90699264]
[1763663690715,0.1998,2831.3,2830.5,0.90699264]
[1763663690716,0.6842,2831.3,2830.5,0.90699264]
[1763663690914,0.1,2830.9,2830.5,0.90699264]
[1763663691118,0.1998,2831.3,2830.6,0.405504]
[1763663691119,0.002,2831.3,2830.6,0.405504]
[1763663691706,0.002,2831.3,2831.0,0.90699264]
[1763663691910,0.002,2831.3,2831.1,0.405504]
[1763663692135,0.002,2831.3,2831.1,0.864804]
[1763663692444,0.002,2831.3,2831.2,8.85120388]
[1763663692746,0.002,2831.3,2831.2,9.77687467]
[1763663692907,0.002,2831.3,2831.2,8.44569988]
[1763663693611,0.5864,2831.3,2831.2,0.90699264]
[1763663693805,0.002,2831.3,2831.2,0.90699264]
[1763663697739,0.002,2831.9,2831.6,0.405504]
[1763663697947,0.002,2831.9,2831.8,7.51251146]
[1763663698162,0.002,2831.9,2831.8,8.26376261]
[1763663698824,0.002,2831.9,2831.8,7.85825861]
[1763663699064,0.002,2831.9,2831.8,7.10700746]
[1763663700262,0.002,2831.9,2831.8,0.90699264]
[1763663700670,0.002,2832.4,2832.1,6.20001482]
[1763663700876,0.002,2832.4,2831.7,0.90699264]
[1763663700877,0.5844,2832.3,2831.7,0.90699264]
[1763663701061,0.4844,2832.3,2831.1,6.20001482]
[1763663701379,0.4844,2832.3,2830.0,0.124]
[1763663701628,0.4844,2832.3,2829.1,4.3778]
[1763663701629,0.1978,2831.2,2829.1,4.3778]
[1763663701788,0.1,2830.1,2829.6,6.20001482]
[1763663701934,0.1,2830.1,2829.7,1.52699412]
[1763663702134,0.5542943,2830.9,2829.8,0.49463818]
[1763663702434,0.1,2831.0,2830.5,0.90699264]
[1763663702850,0.1978,2831.2,2830.5,0.90699264]
[1763663703033,0.1978,2831.2,2829.7,0.74400148]
[1763663703034,0.4844,2831.1,2829.7,0.62000148]
[1763663703337,0.4844,2831.1,2830.5,0.90699264]
[1763663703571,0.1,2831.0,2830.5,0.90699264]
[1763663703782,0.1978,2831.6,2831.0,0.90699264]
[1763663703944,0.4844,2831.8,2831.1,6.20001482]
[1763663704147,0.002,2832.7,2831.2,1.93249812]
[1763663704148,0.4844,2832.3,2831.2,1.93249812]
[1763663704454,0.1,2831.9,2831.2,1.52699412]
[1763663704649,0.1,2832.1,2831.2,1.52699412]
[1763663704957,0.002,2832.4,2831.2,1.52699412]
[1763663704958,0.1,2831.5,2831.2,1.52699412]
[1763663705159,0.4844,2832.0,2830.8,0.405504]
[1763663705160,0.1,2831.6,2830.8,0.405504]
[1763663705409,0.002,2832.4,2830.6,6.32401482]
[1763663705410,0.4844,2831.9,2830.6,0.124]
[1763663705538,0.1,2831.0,2830.2,0.90699264]
[1763663705741,0.55421195,2831.5,2830.2,0.90699264]
[1763663705940,0.55421195,2831.5,2830.7,1.31249664]
[1763663706140,0.1,2831.6,2830.8,0.75125115]
[1763663706678,0.1978,2830.9,2829.8,6.20001482]
[1763663706864,0.1,2831.3,2829.9,1.36629264]
[1763663707250,0.1978,2831.8,2830.4,0.90699264]
[1763663707451,0.1978,2831.8,2830.9,1.31249664]
[1763663707654,0.1,2831.6,2830.6,0.405504]
[1763663707854,0.1,2831.6,2830.9,0.90699264]
[1763663708180,0.1,2831.6,2830.6,0.405504]
[1763663708380,0.4546,2831.6,2830.5,0.71070075]
[1763663709077,0.102,2831.3,2830.5,0.71070075]
[1763663709318,0.002,2831.3,2830.6,0.405504]
[1763663709490,0.1,2831.2,2830.6,0.405504]
[1763663709819,0.002,2831.3,2830.6,0.62022374]
[1763663710182,0.002,2831.3,2830.1,0.001]
[1763663710183,0.4546,2831.2,2830.1,0.001]
[1763663710737,0.1,2831.0,2830.1,0.001]
[1763663711894,0.1,2830.8,2830.1,0.001]
[1763663712096,0.4546,2830.8,2830.1,0.001]
[1763663712408,0.1,2830.5,2830.1,0.001]
[1763663712951,0.4546,2830.4,2830.1,0.001]
[1763663713104,0.1,2830.2,2830.1,0.001]
[1763663713505,0.4546,2830.2,2829.6,0.001]
[1763663713750,0.1909,2829.7,2828.0,6.20001482]
[1763663713913,0.1,2829.0,2828.2,0.63845148]
[1763663714334,0.4546,2829.6,2828.5,6.20001482]
[1763663714531,0.1,2829.1,2828.2,6.8384663]
[1763663714740,0.1,2829.1,2828.2,6.20001482]
[1763663714944,0.1909,2829.7,2828.2,6.20001482]
[1763663714945,0.6455,2829.7,2828.3,0.1922]
[1763663715151,0.4546,2829.6,2828.3,0.90699264]
[1763663715440,0.4546,2829.6,2827.7,6.38551482]
[1763663715650,0.1,2828.3,2827.9,0.65095148]
[1763663715807,0.1,2828.3,2827.8,0.90699264]
[1763663716007,0.1,2828.3,2827.7,6.20001482]
[1763663716247,0.90699264,2829.6,2827.7,6.20001482]
[1763663716248,0.1909,2828.9,2827.8,1.37699264]
[1763663716544,0.1909,2828.9,2827.9,0.405504]
[1763663716545,0.1,2828.8,2827.9,0.405504]
[1763663716715,0.1,2828.5,2827.8,0.90699264]
[1763663716907,0.1,2828.5,2827.9,0.71070075]
[1763663717106,0.1,2829.2,2827.9,1.18070075]
[1763663717329,0.1,2828.9,2828.0,0.405504]
[1763663717846,0.4546,2829.3,2828.3,1.31249664]
[1763663718051,0.1,2829.2,2828.3,1.31249664]
[1763663718207,0.4546,2829.3,2828.0,0.529504]
[1763663718408,0.1,2828.7,2828.0,0.74422374]
[1763663718611,0.1,2828.7,2828.0,0.124]
[1763663718942,0.4546,2828.8,2828.0,0.124]
[1763663719431,0.1,2828.5,2828.0,0.124]
[1763663720053,0.5546,2828.5,2827.9,0.71070075]
[1763663720206,0.1,2828.4,2827.3,0.124]
[1763663720407,0.1,2828.0,2827.3,0.124]
[1763663720607,0.1,2828.0,2827.3,1.03099264]
[1763663721050,0.1909,2827.9,2827.3,1.03099264]
[1763663721211,0.2909,2827.9,2827.3,1.03099264]
[1763663721417,0.1,2827.9,2827.3,1.03099264]
[1763663722127,0.1,2827.7,2827.0,0.1902]
[1763663722334,0.2909,2828.2,2827.0,0.1902]
[1763663722535,0.1,2827.8,2827.0,0.1902]
[1763663722735,0.1,2827.5,2826.7,6.20001482]
[1763663722922,0.1,2827.5,2826.8,1.53939412]
[1763663723114,0.1,2827.9,2826.8,2.00939412]
[1763663723320,0.1,2827.8,2826.9,0.405504]
[1763663723625,0.65487431,2827.8,2826.9,0.405504]
[1763663723957,0.4546,2828.1,2827.1,0.405504]